bitfinex/quotes_BTCUSD_20250927
["timestamp","ask_amount","ask_price","bid_price","bid_amount"]
[1758988254939,0.40378296,109670.0,109660.0,1.0533513]
[1758988255523,0.40378296,109670.0,109660.0,0.2930313]
[1758988255745,0.40378296,109670.0,109660.0,1.0533513]
[1758988256691,0.49279338,109670.0,109660.0,1.0533513]
[1758988258433,0.49279338,109670.0,109660.0,0.2930313]
[1758988258807,0.49279338,109670.0,109660.0,1.0533513]
[1758988259947,0.49279338,109670.0,109660.0,1.03628364]
[1758988263773,3.16627465,109670.0,109660.0,0.05816984]
[1758988263981,3.53007983,109670.0,109660.0,0.41102]
[1758988264434,3.50627465,109670.0,109660.0,0.41102]
[1758988264736,2.44688014,109670.0,109660.0,0.5934019]
[1758988264993,0.83482338,109670.0,109660.0,0.5935519]
[1758988265195,1.29232638,109670.0,109660.0,0.5904819]
[1758988265414,1.29232638,109670.0,109660.0,0.5944819]
[1758988265596,1.29232638,109670.0,109660.0,0.5915519]
[1758988268051,1.13748438,109670.0,109660.0,0.5944819]
[1758988268271,1.38897438,109670.0,109660.0,0.5944819]
[1758988268486,1.38897438,109670.0,109660.0,0.5915519]
[1758988273292,1.21352238,109670.0,109660.0,0.5915519]
[1758988280211,1.21352238,109670.0,109660.0,0.2091219]
[1758988280462,1.39881765,109670.0,109660.0,0.02674]
[1758988280691,1.39881765,109670.0,109660.0,0.12174]
[1758988280902,1.39881765,109670.0,109660.0,0.40706]
[1758988281346,1.42625554,109670.0,109660.0,0.40706]
[1758988281782,1.42625554,109670.0,109660.0,0.30806]
[1758988281997,1.42625554,109670.0,109660.0,0.40306]
[1758988282540,1.42625554,109670.0,109660.0,0.40506]
[1758988283768,1.44055934,109670.0,109660.0,0.40506]
[1758988287561,1.44055934,109670.0,109660.0,0.40514]
[1758988288404,1.24556762,109670.0,109660.0,0.40514]
[1758988288813,1.24556762,109670.0,109660.0,0.5875219]
[1758988288939,1.24556762,109670.0,109660.0,0.40514]
[1758988289555,1.26854857,109670.0,109660.0,0.40514]
[1758988289783,1.26854857,109670.0,109660.0,0.42212478]
[1758988290003,1.26854857,109670.0,109660.0,0.32712478]
[1758988290208,1.26854857,109670.0,109660.0,0.42212478]
[1758988292538,1.25541493,109670.0,109660.0,0.42212478]
[1758988294578,1.25541493,109670.0,109660.0,0.04180478]
[1758988294781,1.25541493,109670.0,109660.0,0.42216478]
[1758988295255,1.25541493,109670.0,109660.0,0.04180478]
[1758988295465,1.25541493,109670.0,109660.0,0.42216478]
[1758988295671,1.28285556,109670.0,109660.0,0.42216478]
[1758988296897,1.26855131,109670.0,109660.0,0.42216478]
[1758988297306,0.98504316,109670.0,109660.0,0.42216478]
[1758988300143,0.99934784,109670.0,109660.0,0.42216478]
[1758988302509,0.99934784,109670.0,109660.0,0.04180478]
[1758988302738,0.99934784,109670.0,109660.0,0.42216478]
[1758988303976,1.33934784,109670.0,109660.0,0.42216478]
[1758988305456,1.33641784,109670.0,109660.0,0.42216478]
[1758988305694,1.33803784,109670.0,109660.0,0.42216478]
[1758988306883,1.33803784,109670.0,109660.0,0.04180478]
[1758988307065,1.33803784,109670.0,109660.0,0.42221167]
[1758988309002,1.33904784,109670.0,109660.0,0.04181167]
[1758988309395,0.98171433,109670.0,109660.0,0.42221167]
[1758988309578,1.33803784,109670.0,109660.0,0.42221167]
[1758988311485,4.15309437,109670.0,109660.0,0.42221167]
[1758988313643,4.40309437,109670.0,109660.0,0.42221167]
[1758988316704,4.84898925,109670.0,109660.0,0.42221167]
[1758988320148,4.84898925,109670.0,109660.0,0.42222943]
[1758988321151,4.84898925,109670.0,109660.0,0.04182943]
[1758988321350,4.84898925,109670.0,109660.0,0.42230943]
[1758988321712,4.84898925,109670.0,109660.0,0.42238943]
[1758988323118,4.84898925,109670.0,109660.0,0.04182943]
[1758988323325,4.84999925,109670.0,109660.0,0.42238943]
[1758988323559,4.84999925,109670.0,109660.0,0.04182943]
[1758988323745,4.84999925,109670.0,109660.0,0.42250943]
[1758988325205,4.04778086,109670.0,109660.0,0.42250943]
[1758988325415,4.84999925,109670.0,109660.0,0.04182943]
[1758988325641,4.84999925,109670.0,109660.0,0.42262943]
[1758988327548,4.84999925,109670.0,109660.0,0.42263239]
[1758988328082,4.85642291,109670.0,109660.0,0.42263239]
[1758988329539,4.85541291,109670.0,109660.0,0.42263239]
[1758988329750,4.85541291,109670.0,109660.0,0.40554]
[1758988331126,4.85541291,109670.0,109660.0,0.40514403]
[1758988333750,4.85541291,109670.0,109660.0,0.02434403]
[1758988333962,4.85541291,109670.0,109660.0,0.40494403]
[1758988335655,4.85541291,109670.0,109660.0,0.40490403]
[1758988336322,4.85541291,109670.0,109660.0,0.40486403]
[1758988338796,4.85541291,109670.0,109660.0,0.02434403]
[1758988338998,4.85541291,109670.0,109660.0,0.40482403]
[1758988341460,4.85541291,109670.0,109660.0,0.02434403]
[1758988341607,4.85642291,109670.0,109660.0,0.02434403]
[1758988341820,4.85642291,109670.0,109660.0,0.15194403]
[1758988343520,4.85642291,109670.0,109660.0,0.17986403]
[1758988343748,4.99388109,109670.0,109660.0,0.02434403]
[1758988343977,4.9557745,109670.0,109660.0,0.29122403]
[1758988344190,4.86706303,109670.0,109660.0,0.29122403]
[1758988345171,4.86706303,109670.0,109660.0,0.28922403]
[1758988345392,4.86605303,109670.0,109660.0,0.28922403]
[1758988345841,4.86605303,109670.0,109660.0,0.29417403]
[1758988345842,3.8084932,109670.0,109660.0,0.29417403]
[1758988346066,10.34330546,109670.0,109660.0,0.29417403]
[1758988346928,10.3576108,109670.0,109660.0,0.29417403]
[1758988347500,10.19778617,109670.0,109660.0,0.47655593]
[1758988347705,5.29802117,109670.0,109660.0,0.47655593]
[1758988348105,5.28371583,109670.0,109660.0,0.47655593]
[1758988350366,3.81555183,109670.0,109660.0,0.47655593]
[1758988351106,3.82985621,109670.0,109660.0,0.47655593]
[1758988352045,3.82985621,109670.0,109660.0,0.29417403]
[1758988353111,3.85729305,109670.0,109660.0,0.29417403]
[1758988355463,3.84298867,109670.0,109660.0,0.29417403]
[1758988358915,3.85729295,109670.0,109660.0,0.29417403]
[1758988362440,3.85729295,109670.0,109660.0,0.47655593]
[1758988362441,0.64801269,109670.0,109660.0,0.47655593]
[1758988362649,0.48725595,109670.0,109660.0,0.20967593]
[1758988362865,0.75466208,109670.0,109660.0,0.59023593]
[1758988363496,0.79143986,109670.0,109660.0,0.59023593]
[1758988364327,0.79143986,109670.0,109660.0,0.59223593]
[1758988364748,0.79143986,109670.0,109660.0,0.59823593]
[1758988365389,0.50972945,109670.0,109660.0,0.59823593]
[1758988365590,0.77713558,109670.0,109660.0,0.59823593]
[1758988368394,0.50972945,109670.0,109660.0,0.62838783]
[1758988368610,0.77071192,109670.0,109660.0,0.62838783]
[1758988368807,0.77071192,109670.0,109660.0,0.65582]
[1758988369001,0.43071192,109670.0,109660.0,0.65582]
[1758988371276,0.24502894,109670.0,109660.0,0.65582]
[1758988373024,0.24502894,109670.0,109660.0,0.27526]
[1758988373230,0.24502894,109670.0,109660.0,1.03586]
[1758988373436,0.24502894,109670.0,109660.0,0.27526]
[1758988373681,0.24502894,109670.0,109660.0,1.03586]
[1758988374956,0.28167281,109670.0,109660.0,1.03586]
[1758988375199,0.28167281,109670.0,109660.0,0.27526]
[1758988375422,0.28167281,109670.0,109660.0,1.03582]
[1758988375632,0.28167281,109670.0,109660.0,0.94086]
[1758988375849,0.28167281,109670.0,109660.0,1.03586]
[1758988376068,0.28167281,109670.0,109660.0,0.27526]
[1758988376286,0.28167281,109670.0,109660.0,1.0359]
[1758988376724,0.39296687,109670.0,109660.0,1.0359]
[1758988381880,0.03664387,109670.0,109660.0,1.0359]
[1758988382393,0.61892,109680.0,109670.0,0.21251717]
[1758988382604,0.95176952,109680.0,109670.0,0.21554717]
[1758988382822,0.98963419,109680.0,109670.0,0.24206717]
[1758988383182,0.98963419,109680.0,109670.0,0.26949641]
[1758988384202,0.99604046,109680.0,109670.0,0.27349641]
[1758988384779,0.99604046,109680.0,109670.0,0.27449641]
[1758988385352,0.99604046,109680.0,109670.0,0.26949641]
[1758988385775,0.99604046,109680.0,109670.0,0.27449641]
[1758988386191,0.99604046,109680.0,109670.0,0.27349641]
[1758988386812,0.63971746,109680.0,109670.0,0.27349641]
[1758988387072,0.63971746,109680.0,109670.0,0.26949641]
[1758988387297,0.29331119,109680.0,109670.0,0.26949641]
[1758988387505,0.64963419,109680.0,109670.0,0.93889641]
[1758988387709,0.65604061,109680.0,109670.0,1.03089641]
[1758988387911,0.65766061,109680.0,109670.0,1.03181641]
[1758988388137,0.65604061,109680.0,109670.0,0.56181641]
[1758988388349,0.65766061,109680.0,109670.0,1.03081641]
[1758988388549,0.65766061,109680.0,109670.0,1.03284641]
[1758988389005,0.65766061,109680.0,109670.0,0.27244641]
[1758988389206,0.65766061,109680.0,109670.0,1.03484641]
[1758988390778,0.29971761,109680.0,109670.0,1.03787641]
[1758988391493,0.65604061,109680.0,109670.0,0.27241641]
[1758988391741,0.65766061,109680.0,109670.0,0.94008641]
[1758988391993,0.65766061,109680.0,109670.0,1.03305641]
[1758988392177,0.65766061,109680.0,109670.0,0.27241641]
[1758988392389,0.65867061,109680.0,109670.0,1.03305641]
[1758988392810,0.65766061,109680.0,109670.0,1.03305641]
[1758988393611,3.46272061,109680.0,109670.0,0.55809641]
[1758988393815,3.22167661,109680.0,109670.0,1.03313641]
[1758988394083,3.05223023,109680.0,109670.0,0.27241641]
[1758988394274,2.76901423,109680.0,109670.0,1.03309641]
[1758988394649,2.58978669,109680.0,109670.0,1.03309641]
[1758988394853,2.74914769,109680.0,109670.0,1.03309641]
[1758988395058,2.441781,109680.0,109670.0,1.05014452]
[1758988395266,3.32045265,109680.0,109670.0,0.07694735]
[1758988395490,3.32045265,109680.0,109670.0,0.14451811]
[1758988395636,3.32045265,109680.0,109670.0,0.33747]
[1758988395999,3.32045265,109680.0,109670.0,0.43028879]
[1758988396449,3.3569161,109680.0,109670.0,0.04952879]
[1758988396673,3.3569161,109680.0,109670.0,0.43036879]
[1758988397096,3.3569161,109680.0,109670.0,0.42436879]
[1758988397296,3.3569161,109680.0,109670.0,0.42636879]
[1758988397525,3.3569161,109680.0,109670.0,0.42236879]
[1758988397753,3.38435208,109680.0,109670.0,0.42336879]
[1758988397973,3.38435208,109680.0,109670.0,0.42536879]
[1758988398209,3.38435208,109680.0,109670.0,0.42436879]
[1758988398441,3.38535208,109680.0,109670.0,0.42436879]
[1758988399859,3.39965538,109680.0,109670.0,0.42436879]
[1758988404108,3.39965538,109680.0,109670.0,0.60673406]
[1758988404109,2.47460438,109680.0,109670.0,0.60673406]
[1758988404338,2.62811838,109680.0,109670.0,0.60878406]
[1758988404925,2.98444138,109680.0,109670.0,0.60878406]
[1758988405112,2.98444138,109680.0,109670.0,0.42641879]
[1758988405307,2.98444138,109680.0,109670.0,0.60673406]
[1758988405726,2.98444138,109680.0,109670.0,0.42436879]
[1758988406779,2.98444138,109680.0,109670.0,0.04352879]
[1758988407000,2.98545138,109680.0,109670.0,0.42588879]
[1758988409782,3.36557629,109680.0,109670.0,0.04352879]
[1758988410023,3.37621779,109680.0,109670.0,0.33108879]
[1758988410442,3.01989479,109680.0,109670.0,0.33108879]
[1758988410567,3.01889479,109680.0,109670.0,0.04152879]
[1758988410790,3.37521779,109680.0,109670.0,0.32908879]
[1758988411006,3.46592926,109680.0,109670.0,0.32908879]
[1758988411450,3.10960626,109680.0,109670.0,0.32908879]
[1758988412890,3.1239111,109680.0,109670.0,0.32905302]
[1758988413541,2.98645292,109680.0,109670.0,0.32905302]
[1758988413781,2.98544292,109680.0,109670.0,0.32905302]
[1758988414377,2.98544292,109680.0,109670.0,0.33110302]
[1758988414951,2.98344292,109680.0,109670.0,0.33110302]
[1758988415163,2.98344292,109680.0,109670.0,0.33310302]
[1758988415390,2.98344292,109680.0,109670.0,0.33613302]
[1758988415831,2.95600694,109680.0,109670.0,0.33613302]
[1758988416571,2.92498678,109680.0,109670.0,0.33613302]
[1758988416963,2.92598678,109680.0,109670.0,0.33613302]
[1758988428307,2.92598678,109680.0,109670.0,0.33616398]
[1758988433024,2.25906394,109680.0,109670.0,0.51852925]
[1758988433273,2.2447591,109680.0,109670.0,0.51852925]
[1758988433943,2.6010821,109680.0,109670.0,0.51852925]
[1758988434163,2.2447591,109680.0,109670.0,0.51852925]
[1758988434851,2.5847591,109680.0,109670.0,0.51852631]
[1758988436082,2.59906192,109680.0,109670.0,0.51852631]
[1758988436491,2.59906192,109680.0,109670.0,0.61324631]
[1758988436710,2.77728308,109680.0,109670.0,0.61324631]
[1758988436919,2.77728308,109680.0,109670.0,0.23096631]
[1758988437107,2.77728308,109680.0,109670.0,0.61320631]
[1758988437748,2.77728308,109680.0,109670.0,0.23096631]
[1758988438022,2.77728308,109680.0,109670.0,0.61320631]
[1758988439466,2.05337826,109680.0,109670.0,0.61320631]
[1758988440082,2.05337826,109680.0,109670.0,0.59615527]
[1758988441763,2.05337826,109680.0,109670.0,0.21391527]
[1758988441946,2.05337826,109680.0,109670.0,0.59599527]
[1758988442345,2.067681,109680.0,109670.0,0.59599527]
[1758988445782,2.05337826,109680.0,109670.0,0.59599527]
[1758988446571,2.05979708,109680.0,109670.0,0.59599527]
[1758988447091,2.32706916,109680.0,109670.0,0.4104]
[1758988447293,2.05979708,109680.0,109670.0,0.4104]
[1758988447814,2.32706916,109680.0,109670.0,0.4104]
[1758988448524,2.32706916,109680.0,109670.0,0.41341]
[1758988449090,2.34137196,109680.0,109670.0,0.41341]
[1758988449519,2.34137196,109680.0,109670.0,0.41032]
[1758988449892,2.12059121,109680.0,109670.0,0.41333]
[1758988450092,2.30293986,109680.0,109670.0,0.41333]
[1758988450341,2.34065906,109680.0,109670.0,0.41333]
[1758988456079,1.53884282,109680.0,109670.0,0.59569527]
[1758988456284,2.34065906,109680.0,109670.0,0.59569527]
[1758988456483,2.34065906,109680.0,109670.0,0.41333]
[1758988457538,2.34065906,109680.0,109670.0,0.59569527]
[1758988457731,2.34065906,109680.0,109670.0,0.41333]
[1758988458131,2.34065906,109680.0,109670.0,0.59569527]
[1758988462202,2.00162771,109680.0,109670.0,0.59569527]
[1758988462816,2.00162771,109680.0,109670.0,0.41333]
[1758988463178,2.00163053,109680.0,109670.0,0.41333]
[1758988467393,2.34163053,109680.0,109670.0,0.59569527]
[1758988468355,2.34163059,109680.0,109670.0,0.59569527]
[1758988470625,2.3416307,109680.0,109670.0,0.59569527]
[1758988470802,2.3416307,109680.0,109670.0,0.41333]
[1758988471964,2.3416307,109680.0,109670.0,0.59569527]
[1758988472175,2.3416307,109680.0,109670.0,0.41333]
[1758988472596,2.3416307,109680.0,109670.0,0.59569527]
[1758988472818,2.3416307,109680.0,109670.0,0.41333]
[1758988473108,2.3416307,109680.0,109670.0,0.59569527]
[1758988473324,2.36906374,109680.0,109670.0,0.59569527]
[1758988477523,2.36906374,109680.0,109670.0,0.41333]
[1758988479355,2.36906374,109680.0,109670.0,0.59569527]
[1758988480338,2.36906374,109680.0,109670.0,0.41333]
[1758988481579,2.36906374,109680.0,109670.0,0.41032]
[1758988482186,1.91944301,109680.0,109670.0,0.59572527]
[1758988482662,1.64386301,109680.0,109670.0,0.59572527]
[1758988484299,1.82621166,109680.0,109670.0,0.59572527]
[1758988487636,1.82621166,109680.0,109670.0,0.59548527]
[1758988488072,1.82621166,109680.0,109670.0,0.59544527]
[1758988488530,1.82621166,109680.0,109670.0,0.59035527]
[1758988489206,2.09348374,109680.0,109670.0,0.20883527]
[1758988489418,2.09348374,109680.0,109670.0,0.59035527]
[1758988489574,2.09348374,109680.0,109670.0,0.20883527]
[1758988489777,2.09348374,109680.0,109670.0,0.59035527]
[1758988492194,2.09348374,109680.0,109670.0,0.20883527]
[1758988492395,2.09348374,109680.0,109670.0,0.59027527]
[1758988493104,1.82621166,109680.0,109670.0,0.59027527]
[1758988494392,1.82621166,109680.0,109670.0,0.59235527]
[1758988494607,2.09348374,109680.0,109670.0,0.59235527]
[1758988495482,1.2916675,109680.0,109670.0,0.59235527]
[1758988495710,1.82621166,109680.0,109670.0,0.59555527]
[1758988498582,2.00438868,109680.0,109670.0,0.59555527]
[1758988499001,2.00438868,109680.0,109670.0,0.40815]
[1758988500058,2.00438868,109680.0,109670.0,0.59051527]
[1758988501088,2.00438868,109680.0,109670.0,0.02647]
[1758988501295,2.00438868,109680.0,109670.0,0.4066589]
[1758988502743,2.00438868,109680.0,109670.0,0.0248589]
[1758988502956,2.00438868,109680.0,109670.0,0.4066189]
[1758988503423,2.00438868,109680.0,109670.0,0.0248589]
[1758988503650,2.00438868,109680.0,109670.0,0.3118189]
[1758988503841,2.00438868,109680.0,109670.0,0.2909789]
[1758988513936,2.00438637,109680.0,109670.0,0.2909789]
[1758988518472,2.00438637,109680.0,109670.0,0.2930089]
[1758988519324,2.00438637,109680.0,109670.0,0.2909789]
[1758988522550,1.80873377,109680.0,109670.0,0.2909789]
[1758988522788,1.82303717,109680.0,109670.0,0.2909789]
[1758988523815,1.46667658,109680.0,109670.0,0.47843417]
[1758988524030,1.46667658,109680.0,109670.0,0.2960689]
[1758988526469,1.50376988,109680.0,109670.0,0.2960689]
[1758988529665,1.28531295,109680.0,109670.0,0.2960689]
[1758988531420,1.28531465,109680.0,109670.0,0.2960689]
[1758988532079,1.62531465,109680.0,109670.0,0.2960689]
[1758988532681,1.98167524,109680.0,109670.0,0.2960689]
[1758988535026,1.62531465,109680.0,109670.0,0.2960689]
[1758988535227,1.0812599,109680.0,109670.0,0.47843417]
[1758988535393,1.0669565,109680.0,109670.0,0.47843417]
[1758988535595,1.0605353,109680.0,109670.0,0.47843417]
[1758988535797,1.42331678,109680.0,109670.0,0.47843417]
[1758988537033,1.60566543,109680.0,109670.0,0.47843417]
[1758988538804,0.44074719,109680.0,109670.0,0.47843417]
[1758988538944,0.44074719,109680.0,109670.0,0.50586586]
[1758988539581,0.44074719,109680.0,109670.0,0.50386586]
[1758988539978,0.44074719,109680.0,109670.0,0.50986586]
[1758988540184,0.44074719,109680.0,109670.0,0.24374586]
[1758988540431,0.44074719,109680.0,109670.0,0.62506586]
[1758988540968,0.62309584,109680.0,109670.0,0.62806586]
[1758988541257,0.62309584,109680.0,109670.0,0.24674586]
[1758988541459,0.44074719,109680.0,109670.0,0.62802586]
[1758988542573,0.62309584,109680.0,109670.0,0.62802586]
[1758988543747,0.97945643,109680.0,109670.0,0.06438059]
[1758988543945,0.97945643,109680.0,109670.0,0.62802586]
[1758988544147,1.33581702,109680.0,109670.0,0.06438059]
[1758988544350,1.33581702,109680.0,109670.0,0.15644059]
[1758988544561,1.33581702,109680.0,109670.0,0.4131389]
[1758988544783,1.33581702,109680.0,109670.0,0.4041389]
[1758988545214,1.33581702,109680.0,109670.0,0.4091389]
[1758988545642,1.67581702,109680.0,109670.0,0.4091389]
[1758988545968,1.67581702,109680.0,109670.0,0.4092589]
[1758988549510,1.69011966,109680.0,109670.0,0.4092589]
[1758988549808,1.33375907,109680.0,109670.0,0.4091789]
[1758988551359,1.33375907,109680.0,109670.0,0.4091389]
[1758988552223,1.33375907,109680.0,109670.0,0.4081389]
[1758988552597,1.33375907,109680.0,109670.0,0.4041389]
[1758988552756,1.33375907,109680.0,109670.0,0.4061389]
[1758988552977,1.33375907,109680.0,109670.0,0.4060989]
[1758988553769,1.69111966,109680.0,109670.0,0.3110189]
[1758988553911,1.69111966,109680.0,109670.0,0.4060189]
[1758988554759,1.33475907,109680.0,109670.0,0.4060189]
[1758988555735,1.33475907,109680.0,109670.0,0.3109389]
[1758988555921,1.33475907,109680.0,109670.0,0.4059389]
[1758988556159,1.69111966,109680.0,109670.0,0.1198589]
[1758988556372,1.67681702,109680.0,109670.0,0.3109389]
[1758988556497,1.67681702,109680.0,109670.0,0.4059389]
[1758988560788,1.7660184,109680.0,109670.0,0.4059389]
[1758988560963,1.78032137,109680.0,109670.0,0.4059389]
[1758988564322,1.78032137,109680.0,109670.0,0.4057789]
[1758988564537,1.91324358,109680.0,109670.0,0.0248589]
[1758988564749,2.70086317,109680.0,109670.0,0.0846589]
[1758988565388,2.69986317,109680.0,109670.0,0.0846589]
[1758988565823,2.69986317,109680.0,109670.0,0.0826589]
[1758988567646,2.71716762,109680.0,109670.0,0.0826589]
[1758988567846,2.74096953,109680.0,109670.0,0.0228589]
[1758988568044,2.74096953,109680.0,109670.0,0.0566189]
[1758988568866,2.55007677,109680.0,109670.0,0.0566189]
[1758988569069,5.52627486,109680.0,109670.0,0.0566189]
[1758988569480,0.52236527,109670.0,109660.0,4e-05]
[1758988569692,11.23962462,109670.0,109660.0,4e-05]
[1758988569929,11.26251462,109670.0,109660.0,4e-05]
[1758988570350,11.28995894,109670.0,109660.0,4e-05]
[1758988570595,10.48803638,109670.0,109660.0,4e-05]
[1758988570875,10.49003638,109670.0,109660.0,4e-05]
[1758988571593,10.49003638,109670.0,109660.0,0.0228]
[1758988571920,10.48803638,109670.0,109660.0,0.0228]
[1758988572122,10.49103638,109670.0,109660.0,0.0228]
[1758988572826,9.68911382,109670.0,109660.0,0.0228]
[1758988573027,10.49103638,109670.0,109660.0,0.0228]
[1758988580968,10.49743589,109670.0,109660.0,0.0228]
[1758988590963,10.4974426,109670.0,109660.0,0.0228]
[1758988594996,10.11672085,109670.0,109660.0,0.02794]
[1758988598510,10.08927653,109670.0,109660.0,0.02794]
[1758988598717,10.10358149,109670.0,109660.0,0.02794]
[1758988600039,10.10058149,109670.0,109660.0,0.02794]
[1758988600278,9.76258149,109670.0,109660.0,0.02794]
[1758988603236,9.76258149,109670.0,109660.0,0.40898]
[1758988604825,10.10258149,109670.0,109660.0,0.40898]
[1758988605813,10.10258149,109670.0,109660.0,0.02794]
[1758988606017,10.10258149,109670.0,109660.0,0.40894]
[1758988607988,9.56796645,109670.0,109660.0,0.40894]
[1758988608199,10.10258149,109670.0,109660.0,0.40894]
[1758988609681,10.10258149,109670.0,109660.0,0.02794]
[1758988609901,10.10258149,109670.0,109660.0,0.40894]
[1758988612867,10.09617527,109670.0,109660.0,0.40894]
[1758988613076,10.10258658,109670.0,109660.0,0.40894]
[1758988614879,10.101065,109670.0,109660.0,0.40894]
[1758988615278,8.19999258,109670.0,109660.0,0.5913219]
[1758988617015,6.28171606,109670.0,109660.0,0.5913219]
[1758988617176,6.2674111,109670.0,109660.0,0.5913219]
[1758988617356,6.2674111,109670.0,109660.0,0.5912819]
[1758988617557,4.2306781,109670.0,109660.0,0.5912819]
[1758988618846,3.9930061,109670.0,109660.0,0.5912819]
[1758988620460,4.00731012,109670.0,109660.0,0.5912819]
[1758988621948,4.00731012,109670.0,109660.0,0.2103219]
[1758988622184,4.00731012,109670.0,109660.0,0.5912819]
[1758988622753,4.0963933,109670.0,109660.0,0.5912819]
[1758988623766,3.91402803,109670.0,109660.0,0.5912819]
[1758988624230,4.0963933,109670.0,109660.0,0.5912819]
[1758988624592,3.91402803,109670.0,109660.0,0.5912819]
[1758988624796,4.0963933,109670.0,109660.0,0.5912819]
[1758988625582,3.91402803,109670.0,109660.0,0.5912819]
[1758988625809,3.41602503,109670.0,109660.0,0.5912819]
[1758988626027,3.41602503,109670.0,109660.0,0.4962419]
[1758988626220,3.41602503,109670.0,109660.0,0.5912819]
[1758988627725,3.41402503,109670.0,109660.0,0.5912819]
[1758988628129,3.41602503,109670.0,109660.0,0.5912819]
[1758988628685,1.79791803,109670.0,109660.0,0.5912819]
[1758988629470,1.79591803,109670.0,109660.0,0.5912819]
[1758988631010,1.79591803,109670.0,109660.0,0.5922819]
[1758988638240,1.79591803,109670.0,109660.0,0.2113219]
[1758988638442,1.79591803,109670.0,109660.0,0.5922019]
[1758988639438,1.78161401,109670.0,109660.0,0.5922019]
[1758988643632,0.91438031,109670.0,109660.0,0.5922019]
[1758988643870,0.87238331,109670.0,109660.0,0.2113219]
[1758988644072,1.04994401,109670.0,109660.0,0.5928419]
[1758988644663,0.72569201,109670.0,109660.0,0.5928419]
[1758988644861,1.04412701,109670.0,109660.0,0.5918419]
[1758988645105,1.04412701,109670.0,109660.0,0.5958419]
[1758988651450,0.84502225,109670.0,109660.0,0.5958419]
[1758988652721,0.6748257,109670.0,109660.0,0.5006019]
[1758988652929,0.6748257,109670.0,109660.0,0.5956019]
[1758988653755,0.6748257,109670.0,109660.0,0.62303568]
[1758988654353,1.0148257,109670.0,109660.0,0.62303568]
[1758988657696,1.0148257,109670.0,109660.0,0.62283568]
[1758988663339,1.02124517,109670.0,109660.0,0.62283568]
[1758988669725,0.70281017,109670.0,109660.0,0.62283568]
[1758988677302,0.70281017,109670.0,109660.0,0.52759568]
[1758988677502,0.70281017,109670.0,109660.0,0.24175568]
[1758988677701,0.70281017,109670.0,109660.0,0.61947568]
[1758988678273,1.35476117,109670.0,109660.0,0.61947568]
[1758988682231,1.35476117,109670.0,109660.0,0.23863568]
[1758988682442,1.13511442,109670.0,109660.0,0.61947568]
[1758988682824,1.13511442,109670.0,109660.0,0.23863568]
[1758988683172,1.13511442,109670.0,109660.0,0.61947568]
[1758988684427,1.13511728,109670.0,109660.0,0.61947568]
[1758988684641,1.2656364,109670.0,109660.0,0.61947568]
[1758988686761,1.2656364,109670.0,109660.0,0.62259568]
[1758988687356,1.2656364,109670.0,109660.0,0.52759568]
[1758988687560,1.2656364,109670.0,109660.0,0.62259568]
[1758988688107,0.99837333,109670.0,109660.0,0.62259568]
[1758988688309,1.2656364,109670.0,109660.0,0.62259568]
[1758988693398,0.9256364,109670.0,109660.0,0.62259568]
[1758988694687,0.65837333,109670.0,109660.0,0.62259568]
[1758988694907,0.9256364,109670.0,109660.0,0.62259568]
[1758988695989,0.7696934,109670.0,109660.0,0.62259568]
[1758988698410,0.50243033,109670.0,109660.0,0.62259568]
[1758988698681,0.7696934,109670.0,109660.0,0.62259568]
[1758988699517,0.50243033,109670.0,109660.0,0.62259568]
[1758988699715,0.7696934,109670.0,109660.0,0.62259568]
[1758988701688,1.1096951,109670.0,109660.0,0.62259568]
[1758988703661,0.84243203,109670.0,109660.0,0.62259568]
[1758988703864,1.1096951,109670.0,109660.0,0.62259568]
[1758988705135,0.84243203,109670.0,109660.0,0.62259568]
[1758988705343,1.1096951,109670.0,109660.0,0.62259568]
[1758988706213,1.1096951,109670.0,109660.0,0.24175568]
[1758988706453,1.1096951,109670.0,109660.0,0.62263568]
[1758988706842,0.91150047,109670.0,109660.0,0.62263568]
[1758988707082,1.6528451,109670.0,109660.0,0.62263568]
[1758988707253,1.14438003,109670.0,109660.0,0.62263568]
[1758988707453,1.4116431,109670.0,109660.0,0.62263568]
[1758988716189,1.3890571,109670.0,109660.0,0.62263568]
[1758988716996,1.38905635,109670.0,109660.0,0.62263568]
[1758988717650,1.38905635,109670.0,109660.0,0.62259568]
[1758988723675,0.94881035,109670.0,109660.0,0.62259568]
[1758988726450,0.68154728,109670.0,109660.0,0.62259568]
[1758988726650,0.94881035,109670.0,109660.0,0.62259568]
[1758988729788,0.68154728,109670.0,109660.0,0.62259568]
[1758988730013,0.94881035,109670.0,109660.0,0.62259568]
[1758988736868,0.68154728,109670.0,109660.0,0.62259568]
[1758988737242,0.94881035,109670.0,109660.0,0.62259568]
[1758988743437,0.94881035,109670.0,109660.0,0.62267568]
[1758988744493,0.94881035,109670.0,109660.0,0.52759568]
[1758988744701,0.68154728,109670.0,109660.0,0.62259568]
[1758988745322,0.68154728,109670.0,109660.0,0.24175568]
[1758988745546,0.68154728,109670.0,109660.0,0.62259568]
[1758988750824,0.68154728,109670.0,109660.0,0.24175568]
[1758988751031,1.21623801,109670.0,109660.0,0.61745568]
[1758988755248,1.03387274,109670.0,109660.0,0.61745568]
[1758988755866,1.21623801,109670.0,109660.0,0.61745568]
[1758988759292,1.21623801,109670.0,109660.0,0.23661568]
[1758988759502,1.21623801,109670.0,109660.0,0.61745568]
[1758988762124,1.21623801,109670.0,109660.0,0.23661568]
[1758988762332,1.21623801,109670.0,109660.0,0.61745568]
[1758988762540,1.21623801,109670.0,109660.0,0.23661568]
[1758988762697,1.21623801,109670.0,109660.0,0.61745568]
[1758988766395,1.21623801,109670.0,109660.0,0.61959568]
[1758988767431,0.88023801,109670.0,109660.0,0.61959568]
[1758988767826,0.88023801,109670.0,109660.0,0.61745568]
[1758988771158,0.88023801,109670.0,109660.0,0.62282568]
[1758988771590,0.88023801,109670.0,109660.0,0.61959568]
[1758988772570,1.22023801,109670.0,109660.0,0.61959568]
[1758988773434,0.86391255,109670.0,109660.0,0.61959568]
[1758988773641,1.22023801,109670.0,109660.0,0.61959568]
[1758988774422,1.22023801,109670.0,109660.0,0.62282568]
[1758988774769,1.22023801,109670.0,109660.0,0.44044378]
[1758988775099,1.22023801,109670.0,109660.0,0.62282568]
[1758988775821,0.99291175,109670.0,109660.0,0.44044378]
[1758988776047,2.99537975,109670.0,109660.0,0.44044378]
[1758988776386,2.99537975,109670.0,109660.0,0.62282568]
[1758988776934,2.99537975,109670.0,109660.0,0.05960378]
[1758988777122,2.99537975,109670.0,109660.0,0.44044378]
[1758988777514,2.99537975,109670.0,109660.0,0.62282568]
[1758988778553,2.94066675,109670.0,109660.0,0.62282568]
[1758988780051,2.87873075,109670.0,109660.0,0.62282568]
[1758988782661,2.74679675,109670.0,109660.0,0.62282568]
[1758988786046,2.74679675,109670.0,109660.0,0.61959568]
[1758988788184,2.74679675,109670.0,109660.0,0.43507378]
[1758988788389,2.74679675,109670.0,109660.0,0.40764]
[1758988788999,2.77423306,109670.0,109660.0,0.40764]
[1758988789196,2.77423306,109670.0,109660.0,0.0268]
[1758988789402,2.77423306,109670.0,109660.0,0.4076]